[Event "Early-Titled-Tuesday-Blitz-February-13-2024"]
[Site "Chess.com"]
[Date "2024.02.13"]
[Round "8"]
[White "Sina_Movahed"]
[Black "dropstoneDP"]
[Result "1-0"]
[WhiteElo "3007"]
[BlackElo "3061"]
[TimeControl "180+1"]
[EndTime "9:31:48 PST"]
[Termination "Sina_Movahed won on time"]

1. Nf3 {[%clk 0:03:00.9]} 1... d5 {[%clk 0:02:57.6]} 2. c4 {[%clk 0:03:00.8]}
2... d4 {[%clk 0:02:57.3]} 3. b4 {[%clk 0:03:00.9]} 3... c5 {[%clk 0:02:55.2]}
4. g3 {[%clk 0:02:58.5]} 4... Nf6 {[%clk 0:02:52.2]} 5. Bg2 {[%clk 0:02:56.9]}
5... Qc7 {[%clk 0:02:52.4]} 6. O-O {[%clk 0:02:53.9]} 6... e5 {[%clk 0:02:52]}
7. d3 {[%clk 0:02:54]} 7... cxb4 {[%clk 0:02:50.4]} 8. e3 {[%clk 0:02:54.1]}
8... dxe3 {[%clk 0:02:49.6]} 9. Bxe3 {[%clk 0:02:53.7]} 9... Nc6 {[%clk
0:02:50.1]} 10. a3 {[%clk 0:02:52.5]} 10... Be7 {[%clk 0:02:45.9]} 11. axb4
{[%clk 0:02:52.6]} 11... Bxb4 {[%clk 0:02:46.8]} 12. Qb3 {[%clk 0:02:49.4]}
12... O-O {[%clk 0:02:42.9]} 13. Nc3 {[%clk 0:02:49.9]} 13... Bxc3 {[%clk
0:02:42.6]} 14. Qxc3 {[%clk 0:02:50]} 14... Re8 {[%clk 0:02:40.5]} 15. Rfe1
{[%clk 0:02:49.6]} 15... Bg4 {[%clk 0:02:26]} 16. Ng5 {[%clk 0:02:43.7]} 16...
Rad8 {[%clk 0:02:15.1]} 17. Ne4 {[%clk 0:02:32.1]} 17... Nxe4 {[%clk 0:02:13.7]}
18. Bxe4 {[%clk 0:02:33]} 18... Nd4 {[%clk 0:02:01.3]} 19. Bxd4 {[%clk
0:02:21.1]} 19... exd4 {[%clk 0:02:00.3]} 20. Qb2 {[%clk 0:02:08.4]} 20... b6
{[%clk 0:01:55]} 21. Bd5 {[%clk 0:02:08]} 21... Be6 {[%clk 0:01:09.5]} 22. Qxd4
{[%clk 0:02:03.3]} 22... Bxd5 {[%clk 0:00:54.3]} 23. Qxd5 {[%clk 0:02:01.9]}
23... Rxe1+ {[%clk 0:00:50.2]} 24. Rxe1 {[%clk 0:02:01.3]} 24... g6 {[%clk
0:00:50.9]} 25. Qf3 {[%clk 0:01:52.4]} 25... Qd6 {[%clk 0:00:48.6]} 26. Re3
{[%clk 0:01:46.4]} 26... a6 {[%clk 0:00:47.1]} 27. Qb7 {[%clk 0:01:36.6]} 27...
Qa3 {[%clk 0:00:36.5]} 28. Rf3 {[%clk 0:01:16.7]} 28... Rf8 {[%clk 0:00:10.2]}
29. Qxb6 {[%clk 0:01:15.2]} 29... a5 {[%clk 0:00:10.7]} 30. Kg2 {[%clk
0:01:13.5]} 30... a4 {[%clk 0:00:11.1]} 31. d4 {[%clk 0:01:08.4]} 31... Qc1
{[%clk 0:00:11.1]} 32. Qa6 {[%clk 0:01:07.3]} 32... Qd1 {[%clk 0:00:09.4]} 33.
d5 {[%clk 0:01:05]} 33... Qc2 {[%clk 0:00:07]} 34. h4 {[%clk 0:00:55.7]} 34...
h5 {[%clk 0:00:06.9]} 35. Rf4 {[%clk 0:00:51.2]} 35... Qb3 {[%clk 0:00:02.8]}
36. d6 {[%clk 0:00:49.2]} 36... a3 {[%clk 0:00:03]} 37. Rf3 {[%clk 0:00:49.3]}
37... Qd1 {[%clk 0:00:01.2]} 38. Qxa3 {[%clk 0:00:45.5]} 1-0

[Event "Early-Titled-Tuesday-Blitz-February-13-2024"]
[Site "Chess.com"]
[Date "2024.02.13"]
[Round "8"]
[White "HelvertHernandez"]
[Black "MiguelEduardoGB"]
[Result "0-1"]
[WhiteElo "1958"]
[BlackElo "2159"]
[TimeControl "180+1"]
[EndTime "9:31:49 PST"]
[Termination "MiguelEduardoGB won by resignation"]

1. e4 {[%clk 0:01:37.9]} 1... c6 {[%clk 0:02:57.3]} 2. Nf3 {[%clk 0:01:38.1]}
2... d5 {[%clk 0:02:56.5]} 3. exd5 {[%clk 0:01:38.2]} 3... cxd5 {[%clk
0:02:56.7]} 4. d4 {[%clk 0:01:38.9]} 4... Nf6 {[%clk 0:02:57.2]} 5. Bd3 {[%clk
0:01:39.1]} 5... Bg4 {[%clk 0:02:55.9]} 6. O-O {[%clk 0:01:39.2]} 6... Nc6
{[%clk 0:02:56.1]} 7. c3 {[%clk 0:01:37.1]} 7... e6 {[%clk 0:02:55.9]} 8. Nbd2
{[%clk 0:01:36.2]} 8... a6 {[%clk 0:02:55.3]} 9. Re1 {[%clk 0:01:36.2]} 9... Bd6
{[%clk 0:02:55.2]} 10. Nf1 {[%clk 0:01:32]} 10... O-O {[%clk 0:02:54.8]} 11. Ne3
{[%clk 0:01:30.1]} 11... Bh5 {[%clk 0:02:53.4]} 12. Bd2 {[%clk 0:01:29]} 12...
Rc8 {[%clk 0:02:53]} 13. Qb1 {[%clk 0:01:28.1]} 13... Bxf3 {[%clk 0:02:51.1]}
14. gxf3 {[%clk 0:01:27.5]} 14... Ne7 {[%clk 0:02:45.9]} 15. Ng4 {[%clk
0:01:26.5]} 15... Ng6 {[%clk 0:02:36.3]} 16. Bg5 {[%clk 0:01:21.9]} 16... Be7
{[%clk 0:02:35.9]} 17. Ne5 {[%clk 0:01:16.6]} 17... Nd7 {[%clk 0:02:31.1]} 18.
Bxe7 {[%clk 0:01:12.9]} 18... Qxe7 {[%clk 0:02:30.9]} 19. Qc1 {[%clk 0:00:59.1]}
19... Ndxe5 {[%clk 0:02:26]} 20. dxe5 {[%clk 0:00:58.3]} 20... Qh4 {[%clk
0:02:26.6]} 21. Bxg6 {[%clk 0:00:53.3]} 21... fxg6 {[%clk 0:02:18.8]} 22. Re3
{[%clk 0:00:45.9]} 22... Qh3 {[%clk 0:02:08]} 23. f4 {[%clk 0:00:36.9]} 23...
Qg4+ {[%clk 0:02:06.8]} 24. Rg3 {[%clk 0:00:37]} 24... Qxf4 {[%clk 0:02:06.4]}
25. Qxf4 {[%clk 0:00:37.2]} 25... Rxf4 {[%clk 0:02:07.3]} 26. Re1 {[%clk
0:00:35.7]} 26... b5 {[%clk 0:02:02.5]} 27. Kg2 {[%clk 0:00:35.1]} 27... Rcf8
{[%clk 0:02:02.4]} 28. Re2 {[%clk 0:00:35.1]} 28... R8f5 {[%clk 0:02:01.8]} 29.
Rge3 {[%clk 0:00:33.3]} 29... g5 {[%clk 0:01:58.1]} 30. h3 {[%clk 0:00:32.1]}
30... g4 {[%clk 0:01:39.3]} 31. hxg4 {[%clk 0:00:28.5]} 31... Rxg4+ {[%clk
0:01:39.3]} 32. Rg3 {[%clk 0:00:29.1]} 32... Rxg3+ {[%clk 0:01:33.5]} 33. Kxg3
{[%clk 0:00:27.8]} 33... Kf7 {[%clk 0:01:32.2]} 34. f4 {[%clk 0:00:26.9]} 34...
g5 {[%clk 0:01:27.7]} 35. fxg5 {[%clk 0:00:20.7]} 35... Rxg5+ {[%clk 0:01:28.6]}
36. Kf4 {[%clk 0:00:20.5]} 36... Kg6 {[%clk 0:01:29.2]} 37. Rh2 {[%clk 0:00:18]}
37... h5 {[%clk 0:01:28.7]} 38. Re2 {[%clk 0:00:16.4]} 38... Rg4+ {[%clk
0:01:23.2]} 39. Kf3 {[%clk 0:00:16.6]} 39... Kg5 {[%clk 0:01:22.1]} 40. b3
{[%clk 0:00:15.9]} 40... h4 {[%clk 0:01:18.6]} 41. Ke3 {[%clk 0:00:14.6]} 41...
Re4+ {[%clk 0:01:17.9]} 42. Kd3 {[%clk 0:00:14.8]} 42... Rxe2 {[%clk 0:01:18.1]}
43. Kxe2 {[%clk 0:00:14.5]} 43... Kg4 {[%clk 0:01:18.2]} 44. Kf2 {[%clk
0:00:13.5]} 44... Kf4 {[%clk 0:01:18.8]} 45. Kg2 {[%clk 0:00:13.6]} 45... Kxe5
{[%clk 0:01:18.6]} 46. Kh3 {[%clk 0:00:13.7]} 46... Ke4 {[%clk 0:01:19.5]} 47.
Kxh4 {[%clk 0:00:14]} 47... Kd3 {[%clk 0:01:20.2]} 48. Kg5 {[%clk 0:00:14.1]}
48... e5 {[%clk 0:01:19.8]} 49. Kf6 {[%clk 0:00:15]} 49... e4 {[%clk 0:01:20.2]}
50. Ke5 {[%clk 0:00:15.3]} 50... e3 {[%clk 0:01:20.7]} 51. Kxd5 {[%clk
0:00:16.2]} 51... e2 {[%clk 0:01:21.3]} 52. c4 {[%clk 0:00:16.7]} 52... bxc4
{[%clk 0:01:21.7]} 53. bxc4 {[%clk 0:00:15.9]} 53... e1=Q {[%clk 0:01:22.6]} 54.
c5 {[%clk 0:00:15.6]} 54... Qe7 {[%clk 0:01:20.2]} 55. c6 {[%clk 0:00:15.1]}
55... Qc7 {[%clk 0:01:20.7]} 56. Kc5 {[%clk 0:00:15.3]} 56... Kc3 {[%clk
0:01:19.3]} 57. a4 {[%clk 0:00:15.5]} 57... Kb3 {[%clk 0:01:17.3]} 58. a5 {[%clk
0:00:15.8]} 58... Ka4 {[%clk 0:01:17.3]} 0-1

[Event "Early-Titled-Tuesday-Blitz-February-13-2024"]
[Site "Chess.com"]
[Date "2024.02.13"]
[Round "8"]
[White "SirGerhard"]
[Black "shimastream"]
[Result "0-1"]
[WhiteElo "2801"]
[BlackElo "2994"]
[TimeControl "180+1"]
[EndTime "9:31:50 PST"]
[Termination "shimastream won by resignation"]

1. d4 {[%clk 0:02:59.8]} 1... Nf6 {[%clk 0:02:53.8]} 2. c4 {[%clk 0:02:59.1]}
2... g6 {[%clk 0:02:53.9]} 3. Nc3 {[%clk 0:02:58.9]} 3... Bg7 {[%clk 0:02:54.5]}
4. e4 {[%clk 0:02:59.3]} 4... d6 {[%clk 0:02:54.2]} 5. f3 {[%clk 0:02:59.7]}
5... O-O {[%clk 0:02:50.2]} 6. Bg5 {[%clk 0:02:59.5]} 6... c5 {[%clk 0:02:43.7]}
7. d5 {[%clk 0:02:59.5]} 7... e6 {[%clk 0:02:43.4]} 8. Qd2 {[%clk 0:02:59.7]}
8... h6 {[%clk 0:02:36.7]} 9. Be3 {[%clk 0:02:57.1]} 9... exd5 {[%clk
0:02:35.2]} 10. cxd5 {[%clk 0:02:56.9]} 10... a6 {[%clk 0:02:31.9]} 11. a4
{[%clk 0:02:56.3]} 11... h5 {[%clk 0:02:20.1]} 12. Bd3 {[%clk 0:02:51.5]} 12...
Nbd7 {[%clk 0:02:18.3]} 13. Nge2 {[%clk 0:02:49.3]} 13... Ne5 {[%clk 0:02:18.1]}
14. O-O {[%clk 0:02:49]} 14... h4 {[%clk 0:02:15.4]} 15. b3 {[%clk 0:02:43.3]}
15... Bd7 {[%clk 0:02:04]} 16. a5 {[%clk 0:02:31.2]} 16... Rb8 {[%clk
0:01:59.7]} 17. Bc2 {[%clk 0:02:27.4]} 17... Bb5 {[%clk 0:01:48]} 18. h3 {[%clk
0:02:14.7]} 18... Nh5 {[%clk 0:01:42]} 19. Nxb5 {[%clk 0:02:10.4]} 19... axb5
{[%clk 0:01:41.7]} 20. Bg5 {[%clk 0:02:10]} 20... Bf6 {[%clk 0:01:35.4]} 21. Bh6
{[%clk 0:02:09.9]} 21... Re8 {[%clk 0:01:34.4]} 22. f4 {[%clk 0:02:06.9]} 22...
Nd7 {[%clk 0:01:34.2]} 23. e5 {[%clk 0:02:07.2]} 23... dxe5 {[%clk 0:01:33]} 24.
f5 {[%clk 0:02:07.4]} 24... e4 {[%clk 0:01:27.7]} 25. fxg6 {[%clk 0:02:04.1]}
25... fxg6 {[%clk 0:01:28.6]} 26. Rae1 {[%clk 0:01:35.4]} 26... Qe7 {[%clk
0:01:14.1]} 27. Nf4 {[%clk 0:01:27.8]} 27... Bd4+ {[%clk 0:01:11.9]} 28. Kh2
{[%clk 0:01:12.6]} 28... Ng3 {[%clk 0:01:05.4]} 29. Ne6 {[%clk 0:01:03.1]} 29...
Qd6 {[%clk 0:00:29.7]} 30. Bf4 {[%clk 0:01:02.6]} 30... Nxf1+ {[%clk 0:00:29.6]}
31. Rxf1 {[%clk 0:01:02.2]} 31... Qxd5 {[%clk 0:00:30.3]} 32. Nxd4 {[%clk
0:00:39.8]} 32... Qxd4 {[%clk 0:00:23.9]} 33. Qe2 {[%clk 0:00:37.1]} 33... Nf6
{[%clk 0:00:17.5]} 34. Rd1 {[%clk 0:00:30.2]} 34... Qc3 {[%clk 0:00:17.2]} 35.
Bxb8 {[%clk 0:00:20.9]} 35... Rxb8 {[%clk 0:00:18.1]} 36. Rd6 {[%clk 0:00:19.9]}
36... Qe5+ {[%clk 0:00:18]} 0-1

[Event "Early-Titled-Tuesday-Blitz-February-13-2024"]
[Site "Chess.com"]
[Date "2024.02.13"]
[Round "8"]
[White "baki83"]
[Black "PabloZarnicki"]
[Result "1-0"]
[WhiteElo "2844"]
[BlackElo "2639"]
[TimeControl "180+1"]
[EndTime "9:31:51 PST"]
[Termination "baki83 won by checkmate"]

1. e4 {[%clk 0:03:00.9]} 1... e6 {[%clk 0:02:58.5]} 2. d4 {[%clk 0:03:00.5]}
2... d5 {[%clk 0:02:59.4]} 3. Nd2 {[%clk 0:03:00.4]} 3... Nc6 {[%clk 0:02:57.5]}
4. Ngf3 {[%clk 0:02:59.9]} 4... Nf6 {[%clk 0:02:57.4]} 5. e5 {[%clk 0:03:00.1]}
5... Nd7 {[%clk 0:02:57.7]} 6. c3 {[%clk 0:03:00.7]} 6... f6 {[%clk 0:02:57.5]}
7. exf6 {[%clk 0:02:59.2]} 7... Qxf6 {[%clk 0:02:57.7]} 8. Bd3 {[%clk 0:02:57]}
8... Bd6 {[%clk 0:02:57.9]} 9. Qc2 {[%clk 0:02:55.1]} 9... e5 {[%clk 0:02:51.2]}
10. Bxh7 {[%clk 0:02:52.4]} 10... e4 {[%clk 0:02:49.2]} 11. Bxe4 {[%clk
0:02:49.9]} 11... dxe4 {[%clk 0:02:49.1]} 12. Nxe4 {[%clk 0:02:50.2]} 12... Qg6
{[%clk 0:02:41.8]} 13. Bg5 {[%clk 0:02:43.4]} 13... O-O {[%clk 0:02:33]} 14.
O-O-O {[%clk 0:02:38.6]} 14... Bf4+ {[%clk 0:02:19.8]} 15. Bxf4 {[%clk
0:02:38.4]} 15... Rxf4 {[%clk 0:02:19.2]} 16. Rde1 {[%clk 0:02:34.6]} 16... Nf6
{[%clk 0:02:09.7]} 17. Nxf6+ {[%clk 0:02:10.8]} 17... Rxf6 {[%clk 0:02:04.8]}
18. Qxg6 {[%clk 0:02:10.1]} 18... Rxg6 {[%clk 0:02:04.9]} 19. d5 {[%clk
0:02:09.1]} 19... Na5 {[%clk 0:01:45]} 20. Re8+ {[%clk 0:02:08.9]} 20... Kh7
{[%clk 0:01:36]} 21. g3 {[%clk 0:01:39.4]} 21... Nc4 {[%clk 0:01:34.4]} 22. h4
{[%clk 0:01:33.1]} 22... Rf6 {[%clk 0:01:20.1]} 23. Ng5+ {[%clk 0:01:28.4]}
23... Kg6 {[%clk 0:01:20.2]} 24. f4 {[%clk 0:01:27.5]} 24... Nd6 {[%clk
0:00:53.5]} 25. h5+ {[%clk 0:01:15.3]} 25... Kf5 {[%clk 0:00:53.1]} 26. Re5+
{[%clk 0:01:12.7]} 26... Kg4 {[%clk 0:00:53.2]} 27. Re3 {[%clk 0:00:47.9]} 27...
Nc4 {[%clk 0:00:37.7]} 28. Rh4+ {[%clk 0:00:43.9]} 28... Kf5 {[%clk 0:00:37.4]}
29. Re4 {[%clk 0:00:27.1]} 29... Ra6 {[%clk 0:00:12.7]} 30. Rxc4 {[%clk
0:00:18.2]} 30... Kf6 {[%clk 0:00:12.2]} 31. Rxc7 {[%clk 0:00:12.6]} 31... Rxa2
{[%clk 0:00:12]} 32. Rf7# {[%clk 0:00:12]} 1-0

[Event "Early-Titled-Tuesday-Blitz-February-13-2024"]
[Site "Chess.com"]
[Date "2024.02.13"]
[Round "8"]
[White "deribas12345"]
[Black "Matibar"]
[Result "0-1"]
[WhiteElo "2601"]
[BlackElo "2768"]
[TimeControl "180+1"]
[EndTime "9:31:55 PST"]
[Termination "Matibar won on time"]

1. d4 {[%clk 0:03:00.9]} 1... e6 {[%clk 0:02:57]} 2. c4 {[%clk 0:03:00.7]} 2...
b6 {[%clk 0:02:57.3]} 3. e4 {[%clk 0:02:58.7]} 3... Bb7 {[%clk 0:02:55.1]} 4. f3
{[%clk 0:02:58]} 4... Bb4+ {[%clk 0:02:39.8]} 5. Bd2 {[%clk 0:02:46.4]} 5...
Bxd2+ {[%clk 0:02:31.9]} 6. Qxd2 {[%clk 0:02:47.3]} 6... f5 {[%clk 0:02:27.2]}
7. exf5 {[%clk 0:02:27.5]} 7... Nh6 {[%clk 0:02:20]} 8. fxe6 {[%clk 0:02:22.4]}
8... dxe6 {[%clk 0:02:17]} 9. Bd3 {[%clk 0:02:14.3]} 9... O-O {[%clk 0:02:01.5]}
10. Ne2 {[%clk 0:02:13.8]} 10... Nc6 {[%clk 0:02:00.1]} 11. Nbc3 {[%clk
0:02:08.5]} 11... Nf5 {[%clk 0:01:58.2]} 12. Bxf5 {[%clk 0:02:06.2]} 12... Rxf5
{[%clk 0:01:56.9]} 13. O-O {[%clk 0:01:52.7]} 13... Qh4 {[%clk 0:01:56.9]} 14.
Ng3 {[%clk 0:01:42.8]} 14... Rf6 {[%clk 0:01:56.6]} 15. Rfd1 {[%clk 0:01:17.6]}
15... Rd8 {[%clk 0:01:52]} 16. d5 {[%clk 0:00:44.7]} 16... Qxc4 {[%clk
0:01:37.8]} 17. Nce4 {[%clk 0:00:38.5]} 17... Rff8 {[%clk 0:01:32.2]} 18. Rac1
{[%clk 0:00:26.9]} 18... Qxd5 {[%clk 0:01:26.9]} 19. Qg5 {[%clk 0:00:16.4]}
19... Nd4 {[%clk 0:00:32.2]} 20. Qxd5 {[%clk 0:00:04.4]} 20... Rxd5 {[%clk
0:00:22.3]} 21. Rxc7 {[%clk 0:00:03.3]} 21... Nxf3+ {[%clk 0:00:22.1]} 22. gxf3
{[%clk 0:00:03.7]} 22... Rxd1+ {[%clk 0:00:22.7]} 23. Kf2 {[%clk 0:00:03.5]}
23... Bxe4 {[%clk 0:00:17]} 24. Nxe4 {[%clk 0:00:04.4]} 24... h6 {[%clk
0:00:14.1]} 25. Rxa7 {[%clk 0:00:03.3]} 25... Rb1 {[%clk 0:00:14.1]} 26. b4
{[%clk 0:00:01.9]} 26... Rxb4 {[%clk 0:00:13.5]} 27. Kg3 {[%clk 0:00:01.3]}
27... Rd4 {[%clk 0:00:13]} 0-1

[Event "Early-Titled-Tuesday-Blitz-February-13-2024"]
[Site "Chess.com"]
[Date "2024.02.13"]
[Round "8"]
[White "FMCarmona"]
[Black "maurovargas01"]
[Result "1-0"]
[WhiteElo "2266"]
[BlackElo "1887"]
[TimeControl "180+1"]
[EndTime "9:32:00 PST"]
[Termination "FMCarmona won on time"]

1. e4 {[%clk 0:03:00.9]} 1... c5 {[%clk 0:02:48.2]} 2. Nf3 {[%clk 0:03:00.9]}
2... Nc6 {[%clk 0:02:47.8]} 3. Bb5 {[%clk 0:02:58.9]} 3... Nd4 {[%clk
0:02:45.3]} 4. Nxd4 {[%clk 0:02:59.1]} 4... cxd4 {[%clk 0:02:45.5]} 5. c4 {[%clk
0:02:59.9]} 5... Qa5 {[%clk 0:02:41.1]} 6. O-O {[%clk 0:02:54.5]} 6... a6 {[%clk
0:02:40.9]} 7. Ba4 {[%clk 0:02:54.2]} 7... b5 {[%clk 0:02:31.1]} 8. cxb5 {[%clk
0:02:40.6]} 8... axb5 {[%clk 0:02:30.9]} 9. Bb3 {[%clk 0:02:40.6]} 9... d6
{[%clk 0:02:27.2]} 10. d3 {[%clk 0:02:31.9]} 10... e5 {[%clk 0:02:26.3]} 11. f4
{[%clk 0:02:27.4]} 11... Nf6 {[%clk 0:02:24.3]} 12. fxe5 {[%clk 0:02:20.1]}
12... dxe5 {[%clk 0:02:23.9]} 13. Nd2 {[%clk 0:02:01.2]} 13... Bd6 {[%clk
0:02:24]} 14. Nf3 {[%clk 0:01:59.2]} 14... O-O {[%clk 0:02:22.8]} 15. Bg5 {[%clk
0:01:58]} 15... Ng4 {[%clk 0:02:09]} 16. Qe2 {[%clk 0:01:40]} 16... Kh8 {[%clk
0:02:01.2]} 17. h3 {[%clk 0:01:38.2]} 17... Ne3 {[%clk 0:01:50]} 18. Bxe3 {[%clk
0:01:38.5]} 18... dxe3 {[%clk 0:01:50]} 19. Qxe3 {[%clk 0:01:39.1]} 19... b4
{[%clk 0:01:48]} 20. Kh1 {[%clk 0:01:37]} 20... Bc5 {[%clk 0:01:46.6]} 21. Qg5
{[%clk 0:01:13]} 21... f6 {[%clk 0:01:43.8]} 22. Qd2 {[%clk 0:01:11.1]} 22...
Qb6 {[%clk 0:01:41.5]} 23. Nh4 {[%clk 0:01:09.2]} 23... Be3 {[%clk 0:01:38.1]}
24. Qe2 {[%clk 0:01:09.5]} 24... g6 {[%clk 0:01:22.8]} 25. Nf3 {[%clk 0:00:58]}
25... Ba6 {[%clk 0:01:20]} 26. Nd2 {[%clk 0:00:52.7]} 26... Rad8 {[%clk
0:01:09.6]} 27. Nc4 {[%clk 0:00:52.8]} 27... Bxc4 {[%clk 0:01:06.1]} 28. Bxc4
{[%clk 0:00:53.1]} 28... Bd4 {[%clk 0:01:03.2]} 29. Rab1 {[%clk 0:00:43.7]}
29... Qc7 {[%clk 0:00:37.2]} 30. a4 {[%clk 0:00:42.1]} 30... bxa3 {[%clk
0:00:26.3]} 31. bxa3 {[%clk 0:00:42.2]} 31... Qg7 {[%clk 0:00:24.4]} 32. a4
{[%clk 0:00:39]} 32... Ra8 {[%clk 0:00:23.7]} 33. Bb5 {[%clk 0:00:35.2]} 33...
Rf7 {[%clk 0:00:18.7]} 34. Rbc1 {[%clk 0:00:35.1]} 34... Rfa7 {[%clk 0:00:15.8]}
35. Rc6 {[%clk 0:00:34.4]} 35... Qh6 {[%clk 0:00:02.8]} 36. Rcxf6 {[%clk
0:00:32.5]} 1-0

[Event "Early-Titled-Tuesday-Blitz-February-13-2024"]
[Site "Chess.com"]
[Date "2024.02.13"]
[Round "8"]
[White "djano"]
[Black "secretsuperstar7"]
[Result "0-1"]
[WhiteElo "2649"]
[BlackElo "2533"]
[TimeControl "180+1"]
[EndTime "9:32:01 PST"]
[Termination "secretsuperstar7 won by resignation"]

1. e4 {[%clk 0:03:00.9]} 1... c5 {[%clk 0:02:54.2]} 2. Nc3 {[%clk 0:02:59.2]}
2... Nc6 {[%clk 0:02:52.4]} 3. Bb5 {[%clk 0:02:59.3]} 3... Nd4 {[%clk 0:02:52]}
4. Nf3 {[%clk 0:02:59.8]} 4... a6 {[%clk 0:02:50.1]} 5. Bd3 {[%clk 0:02:59.4]}
5... Nc6 {[%clk 0:02:48.5]} 6. O-O {[%clk 0:02:56]} 6... d6 {[%clk 0:02:48.9]}
7. Be2 {[%clk 0:02:50.5]} 7... Nf6 {[%clk 0:02:48.6]} 8. d4 {[%clk 0:02:48.8]}
8... cxd4 {[%clk 0:02:46.1]} 9. Nxd4 {[%clk 0:02:49.7]} 9... g6 {[%clk
0:02:45.9]} 10. Nxc6 {[%clk 0:02:36.6]} 10... bxc6 {[%clk 0:02:45.7]} 11. Kh1
{[%clk 0:02:33.4]} 11... Bg7 {[%clk 0:02:45.2]} 12. f4 {[%clk 0:02:33.8]} 12...
O-O {[%clk 0:02:43.9]} 13. Qe1 {[%clk 0:02:32.2]} 13... Qc7 {[%clk 0:02:34.2]}
14. Qg3 {[%clk 0:02:28.4]} 14... Rb8 {[%clk 0:02:26.1]} 15. Bd3 {[%clk
0:02:18.7]} 15... Nd7 {[%clk 0:02:15.9]} 16. f5 {[%clk 0:02:08.1]} 16... Nc5
{[%clk 0:02:10]} 17. h4 {[%clk 0:01:53.8]} 17... Be5 {[%clk 0:01:53.8]} 18. Qg5
{[%clk 0:01:44]} 18... f6 {[%clk 0:01:44]} 19. Qh6 {[%clk 0:01:36.6]} 19... gxf5
{[%clk 0:01:41.8]} 20. Bc4+ {[%clk 0:01:29.8]} 20... e6 {[%clk 0:01:23.2]} 21.
exf5 {[%clk 0:01:30.2]} 21... d5 {[%clk 0:01:16.1]} 22. Be2 {[%clk 0:01:27.8]}
22... exf5 {[%clk 0:01:13.2]} 23. Bf3 {[%clk 0:01:20.6]} 23... Be6 {[%clk
0:01:09]} 24. Ne2 {[%clk 0:01:19.4]} 24... Ne4 {[%clk 0:00:53.8]} 25. Bxe4
{[%clk 0:01:11.7]} 25... fxe4 {[%clk 0:00:42.5]} 26. Nf4 {[%clk 0:01:11.9]}
26... Bf7 {[%clk 0:00:40.8]} 27. c3 {[%clk 0:01:08.6]} 27... Kh8 {[%clk
0:00:38]} 28. Be3 {[%clk 0:00:58.6]} 28... c5 {[%clk 0:00:30.8]} 29. Nh5 {[%clk
0:00:54.4]} 29... Bxh5 {[%clk 0:00:11.2]} 30. Qxh5 {[%clk 0:00:55.3]} 30... d4
{[%clk 0:00:10]} 31. cxd4 {[%clk 0:00:52.7]} 31... cxd4 {[%clk 0:00:10.2]} 32.
Bh6 {[%clk 0:00:53.4]} 32... Rg8 {[%clk 0:00:09.8]} 33. Rac1 {[%clk 0:00:53.6]}
33... Qd7 {[%clk 0:00:08.5]} 34. b3 {[%clk 0:00:46.8]} 34... Qg4 {[%clk
0:00:07.1]} 35. Qxg4 {[%clk 0:00:28.5]} 35... Rxg4 {[%clk 0:00:08]} 36. Bd2
{[%clk 0:00:28.9]} 36... Rxh4+ {[%clk 0:00:08]} 37. Kg1 {[%clk 0:00:29.6]} 37...
e3 {[%clk 0:00:07.4]} 38. Ba5 {[%clk 0:00:29.4]} 38... Rg4 {[%clk 0:00:06.6]}
39. Rf3 {[%clk 0:00:29.2]} 39... Rbg8 {[%clk 0:00:06.5]} 40. Rc2 {[%clk
0:00:29.5]} 40... d3 {[%clk 0:00:06.4]} 41. Rxe3 {[%clk 0:00:28.1]} 41... dxc2
{[%clk 0:00:06.3]} 0-1

[Event "Early-Titled-Tuesday-Blitz-February-13-2024"]
[Site "Chess.com"]
[Date "2024.02.13"]
[Round "8"]
[White "Nouali_Mohamed"]
[Black "PavelShkapenko"]
[Result "1-0"]
[WhiteElo "2581"]
[BlackElo "2748"]
[TimeControl "180+1"]
[EndTime "9:32:02 PST"]
[Termination "Nouali_Mohamed won by resignation"]

1. e4 {[%clk 0:03:00]} 1... e5 {[%clk 0:03:00.1]} 2. Bc4 {[%clk 0:02:59.8]} 2...
d6 {[%clk 0:02:52.4]} 3. Nc3 {[%clk 0:02:59.4]} 3... Nc6 {[%clk 0:02:52.1]} 4.
d3 {[%clk 0:02:53.6]} 4... Na5 {[%clk 0:02:50.5]} 5. Qf3 {[%clk 0:02:47.6]} 5...
Nxc4 {[%clk 0:02:50]} 6. dxc4 {[%clk 0:02:48.4]} 6... Nf6 {[%clk 0:02:48.6]} 7.
h3 {[%clk 0:02:46.6]} 7... Be7 {[%clk 0:02:48.5]} 8. Nge2 {[%clk 0:02:46]} 8...
O-O {[%clk 0:02:46.5]} 9. Ng3 {[%clk 0:02:30.9]} 9... Be6 {[%clk 0:02:46.2]} 10.
b3 {[%clk 0:02:30.4]} 10... c6 {[%clk 0:02:46.5]} 11. Bb2 {[%clk 0:02:24.8]}
11... d5 {[%clk 0:02:27]} 12. cxd5 {[%clk 0:02:22.1]} 12... cxd5 {[%clk
0:02:27.9]} 13. exd5 {[%clk 0:02:22]} 13... Nxd5 {[%clk 0:02:28.5]} 14. O-O-O
{[%clk 0:02:11.1]} 14... Bg5+ {[%clk 0:02:28.2]} 15. Kb1 {[%clk 0:02:06.9]}
15... Nxc3+ {[%clk 0:02:28.6]} 16. Qxc3 {[%clk 0:02:07.8]} 16... Qb6 {[%clk
0:01:55.3]} 17. Ne4 {[%clk 0:01:52.6]} 17... Bf4 {[%clk 0:01:49.9]} 18. g3
{[%clk 0:01:41.5]} 18... Rac8 {[%clk 0:01:49.1]} 19. Qf3 {[%clk 0:01:41.5]}
19... Bh6 {[%clk 0:01:47.6]} 20. Bxe5 {[%clk 0:01:16.9]} 20... Qc6 {[%clk
0:01:31.6]} 21. Nf6+ {[%clk 0:00:55.2]} 21... Kh8 {[%clk 0:01:24.6]} 22. Qxc6
{[%clk 0:00:49.4]} 22... Rxc6 {[%clk 0:01:25.5]} 23. Ng4 {[%clk 0:00:49.9]}
23... Bf5 {[%clk 0:01:20.2]} 24. Rd6 {[%clk 0:00:17.3]} 24... Bxc2+ {[%clk
0:00:49.9]} 25. Kb2 {[%clk 0:00:15.2]} 25... Be4 {[%clk 0:00:50.4]} 26. Rhd1
{[%clk 0:00:09.6]} 26... Rc2+ {[%clk 0:00:46.3]} 27. Ka1 {[%clk 0:00:09.1]}
27... f6 {[%clk 0:00:28]} 28. Rd8 {[%clk 0:00:04.7]} 28... Rg8 {[%clk
0:00:18.3]} 29. Nxh6 {[%clk 0:00:04.5]} 29... Rc1+ {[%clk 0:00:14.1]} 30. Rxc1
{[%clk 0:00:04.6]} 30... Rxd8 {[%clk 0:00:14.4]} 31. Nf7+ {[%clk 0:00:05]} 1-0